bitfinex-derivatives/quotes_SOLF0:USTF0_20260308
["timestamp","ask_amount","ask_price","bid_price","bid_amount"]
[1772957455794,10.14163661,82.76,82.727,48.00375936]
[1772957455992,10.873,82.773,82.727,48.00375936]
[1772957456190,10.12887691,82.772,82.727,41.96426688]
[1772957456391,10.12887691,82.771,82.727,41.96426688]
[1772957456585,10.873,82.773,82.727,41.96426688]
[1772957456586,10.12887691,82.77,82.727,41.96426688]
[1772957456793,10.873,82.773,82.727,41.96426688]
[1772957456794,10.12887691,82.769,82.727,41.96426688]
[1772957456992,10.12887691,82.768,82.727,41.96426688]
[1772957457193,10.12887691,82.767,82.727,41.96426688]
[1772957457392,10.12887691,82.766,82.727,41.96426688]
[1772957457696,10.12887691,82.765,82.727,41.96426688]
[1772957457889,10.12887691,82.764,82.727,41.96426688]
[1772957458090,10.12887691,82.763,82.727,41.96426688]
[1772957458291,10.12887691,82.762,82.727,41.96426688]
[1772957458492,10.12887691,82.761,82.727,41.96426688]
[1772957458692,10.12887691,82.76,82.727,41.96426688]
[1772957458895,10.12887691,82.759,82.727,41.96426688]
[1772957459090,10.12887691,82.758,82.727,41.96426688]
[1772957459295,10.12887691,82.757,82.727,41.96426688]
[1772957459497,10.12887691,82.756,82.727,41.96426688]
[1772957459703,10.12887691,82.755,82.727,41.96426688]
[1772957459902,10.12887691,82.754,82.727,41.96426688]
[1772957460104,10.12887691,82.753,82.727,41.96426688]
[1772957460305,10.873,82.771,82.727,41.96426688]
[1772957460602,10.14817963,82.77,82.727,41.96426688]
[1772957460801,10.14817963,82.769,82.727,41.96426688]
[1772957461004,10.14817963,82.768,82.727,41.96426688]
[1772957461302,10.14817963,82.767,82.727,41.96426688]
[1772957461501,10.14817963,82.766,82.727,41.96426688]
[1772957461701,10.14817963,82.765,82.727,41.96426688]
[1772957462003,10.14817963,82.764,82.727,41.96426688]
[1772957462202,10.15013023,82.763,82.727,41.96426688]
[1772957462401,10.15013023,82.762,82.727,41.96426688]
[1772957462601,10.15013023,82.761,82.727,41.96426688]
[1772957462802,10.15013023,82.76,82.727,41.96426688]
[1772957463004,10.15013023,82.759,82.727,41.96426688]
[1772957463302,10.15013023,82.758,82.727,41.96426688]
[1772957463499,10.15013023,82.758,82.722,290.90315887]
[1772957463500,10.15013023,82.757,82.722,281.84347206]
[1772957463701,11.30841643,82.755,82.722,281.84347206]
[1772957463898,10.15013023,82.754,82.722,281.84347206]
[1772957464111,10.15013023,82.753,82.723,44.96068455]
[1772957464401,10.15013023,82.752,82.723,44.96068455]
[1772957464602,10.15013023,82.751,82.723,44.96068455]
[1772957464794,10.15013023,82.75,82.723,44.96068455]
[1772957464993,11.30841643,82.767,82.723,44.96068455]
[1772957465192,11.30841643,82.771,82.723,44.96068455]
[1772957465499,11.30841643,82.774,82.723,44.96068455]
[1772957465702,11.30841643,82.778,82.723,44.96068455]
[1772957466801,10.873,82.772,82.726,39.88466853]
[1772957467005,651.92344625,82.789,82.726,39.88466853]
[1772957467797,651.92344625,82.789,82.739,39.87435402]
[1772957473806,10.871,82.787,82.739,39.87435402]
[1772957474006,651.92344625,82.789,82.739,39.87435402]
[1772957477114,10.08116052,82.788,82.739,39.87435402]
[1772957477310,10.08116052,82.787,82.739,39.87435402]
[1772957477511,10.08116052,82.786,82.739,39.87435402]
[1772957477812,10.08116052,82.785,82.739,39.87435402]
[1772957478006,10.08116052,82.784,82.739,39.87435402]
[1772957478210,10.08116052,82.783,82.739,39.87435402]
[1772957478407,651.92344625,82.789,82.739,39.87435402]
[1772957478408,10.08116052,82.782,82.739,39.87435402]
[1772957478612,10.08116052,82.781,82.739,39.87435402]
[1772957478806,10.871,82.788,82.739,39.87435402]
[1772957479010,10.07937863,82.787,82.739,39.87435402]
[1772957479208,10.07937863,82.786,82.739,39.87435402]
[1772957479408,10.07937863,82.785,82.739,39.87435402]
[1772957479709,10.07937863,82.784,82.739,39.87435402]
[1772957479909,10.07937863,82.783,82.739,39.87435402]
[1772957480112,10.07937863,82.782,82.739,39.87435402]
[1772957480315,10.07937863,82.781,82.739,39.87435402]
[1772957480513,10.871,82.788,82.739,39.87435402]
[1772957480805,10.07794381,82.787,82.739,39.87435402]
[1772957481005,10.07794381,82.786,82.739,39.87435402]
[1772957481216,10.07794381,82.785,82.739,39.87435402]
[1772957481414,10.07794381,82.784,82.739,39.87435402]
[1772957481616,10.07794381,82.783,82.739,39.87435402]
[1772957481813,10.07794381,82.782,82.739,39.87435402]
[1772957482015,10.07794381,82.781,82.739,39.87435402]
[1772957482215,10.871,82.788,82.739,39.87435402]
[1772957482513,10.07926024,82.787,82.739,39.87435402]
[1772957482708,10.07926024,82.786,82.739,39.87435402]
[1772957482908,10.07926024,82.785,82.739,39.87435402]
[1772957483113,10.07926024,82.784,82.739,39.87435402]
[1772957483314,10.07926024,82.783,82.739,39.87435402]
[1772957483617,10.07926024,82.782,82.739,39.87435402]
[1772957483819,10.871,82.788,82.739,39.87435402]
[1772957484014,10.06300033,82.787,82.739,39.87435402]
[1772957484316,10.06300033,82.786,82.739,39.87435402]
[1772957484513,10.06300033,82.785,82.739,39.87435402]
[1772957484812,10.06300033,82.784,82.739,39.87435402]
[1772957485011,10.06300033,82.783,82.739,39.87435402]
[1772957485217,10.06300033,82.782,82.739,39.87435402]
[1772957485419,10.871,82.788,82.739,39.87435402]
[1772957485613,10.06232291,82.787,82.739,39.87435402]
[1772957485809,10.06232291,82.786,82.739,39.87435402]
[1772957486013,10.06232291,82.785,82.739,39.87435402]
[1772957486210,10.06232291,82.784,82.739,39.87435402]
[1772957486414,10.06232291,82.783,82.739,39.87435402]
[1772957486616,10.871,82.788,82.739,39.87435402]
[1772957486617,10.06232291,82.782,82.739,39.87435402]
[1772957486817,10.871,82.788,82.739,39.87435402]
[1772957487016,10.06405805,82.787,82.739,39.87435402]
[1772957487215,10.06405805,82.786,82.739,39.87435402]
[1772957487418,10.06405805,82.785,82.739,39.87435402]
[1772957487617,10.06405805,82.784,82.739,39.87435402]
[1772957487808,10.06405805,82.783,82.739,39.87435402]
[1772957488013,10.06405805,82.782,82.739,39.87435402]
[1772957488213,651.92344625,82.789,82.741,39.86062058]
[1772957489821,651.92344625,82.789,82.743,39.86197626]
[1772957492922,651.92344625,82.789,82.745,10.877]
[1772957493118,651.92344625,82.789,82.746,39.85988533]
[1772957494924,651.92344625,82.789,82.747,10.877]
[1772957495221,651.92344625,82.789,82.748,39.88519038]
[1772957499116,11.30841643,82.823,82.748,39.88519038]
[1772957499317,10.05554379,82.822,82.748,39.88519038]
[1772957499611,10.05554379,82.821,82.748,39.88519038]
[1772957499818,10.867,82.817,82.758,10.875]
[1772957500123,10.05554379,82.816,82.759,39.90799263]
[1772957500324,10.05554379,82.815,82.759,39.90799263]
[1772957500618,11.30841643,82.824,82.759,39.90799263]
[1772957500619,10.05554379,82.814,82.759,39.90799263]
[1772957500823,10.05554379,82.813,82.759,39.90799263]
[1772957501024,10.05554379,82.812,82.759,39.90799263]
[1772957501322,10.05554379,82.811,82.759,39.90799263]
[1772957501522,10.05554379,82.81,82.759,39.90799263]
[1772957501716,10.05554379,82.809,82.759,39.90799263]
[1772957501920,10.05554379,82.808,82.759,39.90799263]
[1772957502119,10.868,82.815,82.759,39.90799263]
[1772957502319,10.05287922,82.814,82.759,39.90799263]
[1772957502519,10.05287922,82.813,82.759,39.90799263]
[1772957502719,10.05287922,82.812,82.759,39.90799263]
[1772957502919,10.05287922,82.811,82.759,39.90799263]
[1772957503125,10.868,82.815,82.761,39.88894734]
[1772957503324,10.05111142,82.814,82.761,39.88894734]
[1772957503525,10.05111142,82.813,82.761,39.88894734]
[1772957503720,10.05111142,82.812,82.761,39.88894734]
[1772957503925,10.868,82.815,82.761,39.88894734]
[1772957504124,10.05111045,82.814,82.761,39.88894734]
[1772957504324,10.05111045,82.813,82.761,39.88894734]
[1772957504520,10.05111045,82.812,82.761,39.88894734]
[1772957504721,10.05042061,82.811,82.761,39.88894734]
[1772957504923,10.868,82.815,82.763,39.88436652]
[1772957505122,10.05028627,82.814,82.763,39.88436652]
[1772957505425,10.05028627,82.813,82.763,39.88436652]
[1772957505624,10.868,82.815,82.763,39.88436652]
[1772957505826,10.0489131,82.814,82.763,39.88436652]
[1772957506126,10.0489131,82.813,82.763,39.88436652]
[1772957506326,10.868,82.815,82.763,39.88436652]
[1772957506527,10.04957091,82.814,82.763,39.88436652]
[1772957506720,10.04957091,82.813,82.763,39.88436652]
[1772957506916,10.868,82.815,82.763,39.88436652]
[1772957507127,10.04957091,82.814,82.763,39.88436652]
[1772957507329,10.04957091,82.813,82.763,39.88436652]
[1772957507625,10.868,82.815,82.763,39.88436652]
[1772957507820,10.04965819,82.814,82.763,39.88436652]
[1772957508026,10.04965819,82.813,82.763,39.88436652]
[1772957508227,10.05003893,82.812,82.763,39.88436652]
[1772957508425,10.868,82.815,82.763,39.88436652]
[1772957508617,10.05003893,82.814,82.763,39.88436652]
[1772957508817,10.05003893,82.813,82.763,39.88436652]
[1772957509028,10.05003893,82.812,82.763,39.88436652]
[1772957509221,10.868,82.815,82.763,39.88436652]
[1772957509222,10.05432383,82.811,82.763,39.88436652]
[1772957509421,10.868,82.815,82.763,39.88436652]
[1772957509622,10.05432383,82.814,82.763,39.88436652]
[1772957509822,10.05432383,82.813,82.763,39.88436652]
[1772957510022,10.05432383,82.812,82.763,39.88436652]
[1772957510226,10.05432383,82.811,82.763,39.88436652]
[1772957510426,10.05432383,82.81,82.763,39.88436652]
[1772957510634,10.868,82.815,82.763,39.88436652]
[1772957510928,10.05587525,82.814,82.763,39.88436652]
[1772957511126,10.05587525,82.813,82.763,39.88436652]
[1772957511324,10.05587525,82.812,82.763,39.88436652]
[1772957511524,10.05587525,82.811,82.763,39.88436652]
[1772957511829,10.05587525,82.81,82.763,39.88436652]
[1772957512029,10.868,82.815,82.763,39.88436652]
[1772957512228,10.05670751,82.814,82.763,39.88436652]
[1772957512432,10.05670751,82.813,82.763,39.88436652]
[1772957512728,10.05670751,82.812,82.763,39.88436652]
[1772957512930,10.05670751,82.811,82.763,39.88436652]
[1772957513130,10.05670751,82.81,82.763,39.88436652]
[1772957513433,10.868,82.815,82.763,39.88436652]
[1772957513631,10.02786172,82.814,82.763,39.88436652]
[1772957513930,10.02786172,82.813,82.763,39.88436652]
[1772957514132,10.02786172,82.812,82.763,39.88436652]
[1772957514333,10.02786172,82.811,82.763,39.88436652]
[1772957514531,10.868,82.815,82.763,39.88436652]
[1772957514733,10.02736439,82.814,82.763,39.88436652]
[1772957514933,10.02736439,82.813,82.763,39.88436652]
[1772957515130,10.02736439,82.812,82.763,39.88436652]
[1772957515331,10.02736439,82.811,82.763,39.88436652]
[1772957515533,10.868,82.815,82.763,39.88436652]
[1772957515734,10.02698922,82.814,82.763,39.88436652]
[1772957515933,10.02698922,82.813,82.763,39.88436652]
[1772957516130,10.02698922,82.812,82.763,39.88436652]
[1772957516434,10.868,82.815,82.763,39.88436652]
[1772957516734,10.02672984,82.814,82.763,39.88436652]
[1772957516932,10.02672984,82.813,82.763,39.88436652]
[1772957517131,10.02672984,82.812,82.763,39.88436652]
[1772957517333,10.868,82.815,82.763,39.88436652]
[1772957517533,10.02658594,82.814,82.763,39.88436652]
[1772957517728,10.02658594,82.813,82.765,39.9206036]
[1772957517936,10.868,82.815,82.765,39.9206036]
[1772957518138,204.63652568,82.839,82.765,39.9206036]
[1772957518336,10.02382086,82.838,82.765,39.9206036]
[1772957518637,10.02382086,82.837,82.765,39.9206036]
[1772957518840,10.02382086,82.836,82.765,39.9206036]
[1772957519132,204.63652568,82.839,82.773,39.92065769]
[1772957519133,20.88882086,82.835,82.773,39.92065769]
[1772957519339,10.02382086,82.834,82.773,39.92065769]
[1772957519639,10.02382086,82.833,82.773,39.92065769]
[1772957519839,10.02382086,82.832,82.773,39.92065769]
[1772957520139,10.02382086,82.831,82.773,39.92065769]
[1772957520436,10.02382086,82.83,82.773,39.92065769]
[1772957520639,10.866,82.827,82.773,39.92065769]
[1772957520833,10.02382086,82.826,82.773,39.92065769]
[1772957521139,204.63652568,82.839,82.773,39.92065769]
[1772957521332,10.02116784,82.838,82.773,39.92065769]
[1772957521529,10.02116784,82.837,82.773,39.92065769]
[1772957521729,204.63652568,82.839,82.773,39.92065769]
[1772957521730,10.02116784,82.836,82.773,39.92065769]
[1772957521936,10.02116784,82.835,82.773,39.92065769]
[1772957522239,10.02116784,82.834,82.773,39.92065769]
[1772957522441,10.02116784,82.833,82.773,39.92065769]
[1772957522636,10.02116784,82.832,82.773,39.92065769]
[1772957522836,10.868,82.816,82.773,39.92065769]
[1772957523348,204.63652568,82.839,82.773,39.92065769]
[1772957523540,10.01968781,82.838,82.773,39.92065769]
[1772957523737,10.01968781,82.837,82.773,39.92065769]
[1772957523939,10.866,82.825,82.773,39.92065769]
[1772957524139,204.63652568,82.839,82.773,39.92065769]
[1772957524440,10.01809748,82.838,82.773,39.92065769]
[1772957524643,10.01809748,82.837,82.773,39.92065769]
[1772957524838,10.01809748,82.836,82.773,39.92065769]
[1772957525039,10.01809748,82.835,82.773,39.92065769]
[1772957525239,10.01809748,82.834,82.773,39.92065769]
[1772957525541,204.63652568,82.839,82.773,39.92065769]
[1772957525737,10.865,82.835,82.783,10.872]
[1772957525935,10.865,82.835,82.784,39.89054735]
[1772957533138,10.01784207,82.834,82.784,39.89054735]
[1772957533340,10.865,82.835,82.784,39.89054735]
[1772957533540,10.01784207,82.834,82.784,39.89054735]
[1772957533837,10.865,82.835,82.784,39.89054735]
[1772957534241,10.01793817,82.834,82.784,39.89054735]
[1772957534442,10.865,82.835,82.784,39.89054735]
[1772957534646,10.01793817,82.834,82.784,39.89054735]
[1772957534844,10.865,82.835,82.784,39.89054735]
[1772957535345,10.01823273,82.834,82.784,39.89054735]
[1772957535538,10.865,82.835,82.784,39.89054735]
[1772957535734,10.01823273,82.834,82.784,39.89054735]
[1772957535938,10.865,82.835,82.784,39.89054735]
[1772957536136,10.01823273,82.834,82.784,39.89054735]
[1772957536439,10.865,82.835,82.784,39.89054735]
[1772957536642,10.01872506,82.834,82.784,39.89054735]
[1772957536841,10.865,82.835,82.784,39.89054735]
[1772957537044,10.01872506,82.834,82.784,39.89054735]
[1772957537237,10.865,82.835,82.784,39.89054735]
[1772957537442,10.01942361,82.834,82.784,39.89054735]
[1772957537642,10.865,82.835,82.784,39.89054735]
[1772957537944,10.01942361,82.834,82.784,39.89054735]
[1772957538145,10.865,82.835,82.784,39.89054735]
[1772957538351,10.02033456,82.834,82.784,39.89054735]
[1772957538545,10.865,82.835,82.784,39.89054735]
[1772957538746,10.02033456,82.834,82.784,39.89054735]
[1772957539045,10.865,82.835,82.784,39.89054735]
[1772957539247,10.0202061,82.834,82.784,39.89054735]
[1772957539447,10.0202061,82.833,82.784,39.89054735]
[1772957539647,10.865,82.835,82.784,39.89054735]
[1772957539946,10.02147549,82.834,82.784,39.89054735]
[1772957540154,10.02147549,82.833,82.784,39.89054735]
[1772957540353,10.865,82.835,82.784,39.89054735]
[1772957540652,10.02285388,82.834,82.784,39.89054735]
[1772957540852,10.02285388,82.833,82.784,39.89054735]
[1772957541056,10.865,82.835,82.784,39.89054735]
[1772957541257,10.02280946,82.834,82.784,39.89054735]
[1772957541553,10.02280946,82.833,82.784,39.89054735]
[1772957541750,10.02280946,82.832,82.784,39.89054735]
[1772957541949,10.865,82.835,82.784,39.89054735]
[1772957542150,10.02450125,82.834,82.784,39.89054735]
[1772957542350,10.02450125,82.833,82.784,39.89054735]
[1772957542546,10.02450125,82.832,82.784,39.89054735]
[1772957542743,10.865,82.835,82.784,39.89054735]
[1772957542954,10.02645641,82.834,82.784,39.89054735]
[1772957543146,10.02645641,82.833,82.784,39.89054735]
[1772957543453,10.02645641,82.832,82.784,39.89054735]
[1772957543645,10.02645641,82.831,82.784,39.89054735]
[1772957543844,10.865,82.835,82.784,39.89054735]
[1772957544050,10.02010805,82.834,82.784,39.89054735]
[1772957544255,10.02010805,82.833,82.784,39.89054735]
[1772957544454,10.02010805,82.832,82.784,39.89054735]
[1772957544652,10.02010805,82.831,82.784,39.89054735]
[1772957544853,10.865,82.835,82.784,39.89054735]
[1772957545054,10.02080089,82.834,82.784,39.89054735]
[1772957545254,10.02080089,82.833,82.784,39.89054735]
[1772957545449,10.02080089,82.832,82.784,39.89054735]
[1772957545654,10.02080089,82.831,82.784,39.89054735]
[1772957545858,10.02080089,82.83,82.784,39.89054735]
[1772957546059,10.865,82.835,82.784,39.89054735]
[1772957546352,10.02191257,82.834,82.784,39.89054735]
[1772957546656,10.02191257,82.833,82.784,39.89054735]
[1772957546957,10.02191257,82.832,82.784,39.89054735]
[1772957547156,10.02191257,82.831,82.784,39.89054735]
[1772957547355,10.02191257,82.83,82.784,39.89054735]
[1772957547554,10.02191257,82.829,82.784,39.89054735]
[1772957547755,10.865,82.835,82.784,39.89054735]
[1772957547958,10.02399633,82.834,82.784,39.89054735]
[1772957548257,10.02399633,82.833,82.784,39.89054735]
[1772957548457,10.02399633,82.832,82.784,39.89054735]
[1772957548658,10.02399633,82.831,82.784,39.89054735]
[1772957548859,10.02399633,82.83,82.784,39.89054735]
[1772957549058,10.02399633,82.829,82.784,39.89054735]
[1772957549260,10.02513793,82.828,82.784,39.89054735]
[1772957549453,10.865,82.835,82.784,39.89054735]
[1772957549649,10.02513793,82.834,82.784,39.89054735]
[1772957549849,10.02513793,82.833,82.784,39.89054735]
[1772957550053,10.02513793,82.832,82.784,39.89054735]
[1772957550260,10.02513793,82.831,82.784,39.89054735]
[1772957550455,10.02513793,82.83,82.784,39.89054735]
[1772957550656,10.02513793,82.829,82.784,39.89054735]
[1772957550860,10.02513793,82.828,82.784,39.89054735]
[1772957551059,10.865,82.835,82.784,39.89054735]
[1772957551254,10.02665262,82.834,82.784,39.89054735]
[1772957551449,10.02665262,82.833,82.784,39.89054735]
[1772957551654,10.02665262,82.832,82.784,39.89054735]
[1772957551956,10.02665262,82.831,82.784,39.89054735]
[1772957552155,10.02665262,82.83,82.784,39.89054735]
[1772957552354,10.02665262,82.829,82.784,39.89054735]
[1772957552554,10.02665262,82.828,82.784,39.89054735]
[1772957552850,10.865,82.835,82.784,39.89054735]
[1772957553050,10.02756321,82.834,82.784,39.89054735]
[1772957553259,10.02756321,82.833,82.784,39.89054735]
[1772957553454,10.02756321,82.832,82.784,39.89054735]
[1772957553660,10.02756321,82.831,82.784,39.89054735]
[1772957553860,10.02756321,82.83,82.784,39.89054735]
[1772957554061,10.02756321,82.829,82.784,39.89054735]
[1772957554362,10.02756321,82.828,82.784,39.89054735]
[1772957554565,10.02756321,82.827,82.784,39.89054735]
[1772957554763,10.865,82.835,82.784,39.89054735]
[1772957554959,10.02970363,82.834,82.784,39.89054735]
[1772957555160,10.02970363,82.833,82.784,39.89054735]
[1772957555463,10.02970363,82.832,82.784,39.89054735]
[1772957555767,10.02970363,82.831,82.784,39.89054735]
[1772957556067,10.02970363,82.83,82.784,39.89054735]
[1772957556363,10.02970363,82.829,82.784,39.89054735]
[1772957556553,10.02970363,82.828,82.784,39.89054735]
[1772957556758,10.02970363,82.827,82.784,39.89054735]
[1772957556956,10.865,82.835,82.784,39.89054735]
[1772957557155,10.03232819,82.834,82.784,39.89054735]
[1772957557358,10.03232819,82.833,82.784,39.89054735]
[1772957557558,10.03232819,82.832,82.784,39.89054735]
[1772957557758,10.03232819,82.831,82.784,39.89054735]
[1772957557963,10.03232819,82.83,82.784,39.89054735]
[1772957558164,10.03232819,82.829,82.784,39.89054735]
[1772957558463,10.03232819,82.828,82.784,39.89054735]
[1772957558664,10.03232819,82.827,82.784,39.89054735]
[1772957558864,10.03232819,82.826,82.784,39.89054735]
[1772957559164,10.03600886,82.825,82.784,39.89054735]
[1772957559368,10.865,82.835,82.784,39.89054735]
[1772957559561,10.03798568,82.834,82.784,39.89054735]
[1772957559764,10.03798568,82.833,82.784,39.89054735]
[1772957559962,10.03798568,82.832,82.784,39.89054735]
[1772957560161,10.03798568,82.831,82.784,39.89054735]
[1772957560359,10.03798568,82.83,82.784,39.89054735]
[1772957560560,10.03798568,82.829,82.784,39.89054735]
[1772957560760,10.03798568,82.828,82.784,39.89054735]
[1772957560961,10.03798568,82.827,82.784,39.89054735]
[1772957561260,10.03798568,82.826,82.784,39.89054735]
[1772957561462,10.865,82.835,82.784,39.89054735]
[1772957561463,10.03798568,82.825,82.784,39.89054735]
[1772957561664,10.03798568,82.824,82.784,39.89054735]
[1772957561967,10.03798568,82.823,82.784,39.89054735]
[1772957562269,10.04844054,82.822,82.784,39.89054735]
[1772957562467,10.04844054,82.821,82.784,39.89054735]
[1772957562670,10.865,82.835,82.784,39.89054735]
[1772957562870,10.04844054,82.834,82.784,39.89054735]
[1772957563170,10.04844054,82.833,82.784,39.89054735]
[1772957563361,10.04844054,82.832,82.784,39.89054735]
[1772957563559,10.04844054,82.831,82.784,39.89054735]
[1772957563767,10.04844054,82.83,82.784,39.89054735]
[1772957563964,10.04844054,82.829,82.784,39.89054735]
[1772957564165,10.04844054,82.828,82.784,39.89054735]
[1772957564469,10.04844054,82.827,82.784,39.89054735]
[1772957564667,10.04844054,82.826,82.784,39.89054735]
[1772957564869,10.04844054,82.825,82.784,39.89054735]
[1772957565161,10.04844054,82.824,82.784,39.89054735]
[1772957565367,10.865,82.835,82.784,39.89054735]
[1772957565368,10.04844054,82.823,82.784,39.89054735]
[1772957565562,10.04844054,82.822,82.784,39.89054735]
[1772957565767,10.04844054,82.821,82.784,39.89054735]
[1772957565957,10.04844054,82.82,82.784,39.89054735]
[1772957566159,10.865,82.835,82.784,39.89054735]
[1772957566369,10.05097263,82.834,82.784,39.89054735]
[1772957566568,10.05097263,82.833,82.784,39.89054735]
[1772957566762,10.05097263,82.832,82.784,39.89054735]
[1772957567067,10.05097263,82.831,82.784,39.89054735]
[1772957567268,10.05097263,82.83,82.784,39.89054735]
[1772957567469,10.05097263,82.829,82.784,39.89054735]
[1772957567769,10.05097263,82.828,82.784,39.89054735]
[1772957567969,10.05097263,82.827,82.784,39.89054735]
[1772957568170,10.05097263,82.826,82.784,39.89054735]
[1772957568376,10.05097263,82.825,82.784,39.89054735]
[1772957568571,10.05097263,82.824,82.784,39.89054735]
[1772957568870,10.05097263,82.823,82.784,39.89054735]
[1772957569068,10.05097263,82.822,82.784,39.89054735]
[1772957569270,10.05097263,82.821,82.784,39.89054735]
[1772957569471,10.05097263,82.82,82.784,39.89054735]
[1772957569667,10.05097263,82.819,82.784,39.89054735]
[1772957569972,10.865,82.835,82.784,39.89054735]
[1772957570270,10.05592784,82.834,82.784,39.89054735]
[1772957570473,10.05592784,82.833,82.784,39.89054735]
[1772957570670,10.05592784,82.832,82.784,39.89054735]
[1772957570867,10.05592784,82.831,82.784,39.89054735]
[1772957571064,10.05592784,82.83,82.784,39.89054735]
[1772957571271,10.05592784,82.829,82.784,39.89054735]
[1772957571571,10.05592784,82.828,82.784,39.89054735]
[1772957571769,10.05592784,82.827,82.784,39.89054735]
[1772957571965,10.05592784,82.826,82.784,39.89054735]
[1772957572166,10.05592784,82.825,82.784,39.89054735]
[1772957572363,10.05592784,82.824,82.784,39.89054735]
[1772957572569,10.05592784,82.823,82.784,39.89054735]
[1772957572773,10.05592784,82.822,82.784,39.89054735]
[1772957573073,10.05592784,82.821,82.784,39.89054735]
[1772957573274,10.05592784,82.82,82.784,39.89054735]
[1772957573572,10.865,82.835,82.784,39.89054735]
[1772957573772,10.06263092,82.834,82.784,39.89054735]
[1772957573962,10.06263092,82.833,82.784,39.89054735]
[1772957574166,10.06263092,82.832,82.784,39.89054735]
[1772957574367,10.06263092,82.831,82.784,39.89054735]
[1772957574562,10.06263092,82.83,82.784,39.89054735]
[1772957574767,10.06263092,82.829,82.784,39.89054735]
[1772957574968,10.06263092,82.828,82.787,39.96500478]
[1772957575163,10.06263092,82.827,82.787,39.96500478]
[1772957575371,10.06263092,82.826,82.787,39.96500478]
[1772957575668,10.06263092,82.825,82.787,39.96500478]
[1772957575975,10.06263092,82.824,82.787,39.96500478]
[1772957576174,204.63652568,82.839,82.787,39.96500478]
[1772957576376,10.06003365,82.838,82.787,39.96500478]
[1772957576575,204.63652568,82.839,82.787,39.96500478]
[1772957576576,10.06003365,82.837,82.787,39.96500478]
[1772957576777,10.06003365,82.836,82.787,39.96500478]
[1772957577074,10.06003365,82.835,82.787,39.96500478]
[1772957577276,10.06003365,82.834,82.787,39.96500478]
[1772957577471,10.06003365,82.833,82.787,39.96500478]
[1772957577672,10.06003365,82.832,82.787,39.96500478]
[1772957577974,10.06003365,82.831,82.787,39.96500478]
[1772957578173,10.06003365,82.83,82.787,39.96500478]
[1772957578374,204.63652568,82.839,82.787,39.96500478]
[1772957578574,10.0553018,82.838,82.787,39.96500478]
[1772957578773,10.0553018,82.837,82.787,39.96500478]
[1772957578975,10.0553018,82.836,82.787,39.96500478]
[1772957579175,10.0553018,82.835,82.787,39.96500478]
[1772957579375,10.0553018,82.834,82.787,39.96500478]
[1772957579575,10.0553018,82.833,82.787,39.96500478]
[1772957579775,10.0553018,82.832,82.787,39.96500478]
[1772957579976,204.63652568,82.839,82.787,39.96500478]
[1772957579977,10.0553018,82.831,82.787,39.96500478]
[1772957580177,204.63652568,82.839,82.787,39.96500478]
[1772957580378,10.05376688,82.838,82.787,39.96500478]
[1772957580573,10.05376688,82.837,82.787,39.96500478]
[1772957580773,10.05376688,82.836,82.787,39.96500478]
[1772957580979,10.05376688,82.835,82.787,39.96500478]
[1772957581171,10.05376688,82.834,82.787,39.96500478]
[1772957581372,10.05376688,82.833,82.787,39.96500478]
[1772957581572,10.05376688,82.832,82.787,39.96500478]
[1772957581769,10.05376688,82.831,82.787,39.96500478]
[1772957581978,10.05376688,82.83,82.787,39.96500478]
[1772957582179,10.865,82.837,82.787,39.96500478]
[1772957582480,10.05251513,82.836,82.787,39.96500478]
[1772957582678,10.05251513,82.835,82.787,39.96500478]
[1772957582879,10.05251513,82.834,82.787,39.96500478]
[1772957583074,10.05251513,82.833,82.787,39.96500478]
[1772957583273,10.05251513,82.832,82.787,39.96500478]
[1772957583474,10.05251513,82.831,82.787,39.96500478]
[1772957583674,10.865,82.837,82.787,39.96500478]
[1772957583874,10.05161605,82.836,82.787,39.96500478]
[1772957584081,10.05161605,82.835,82.787,39.96500478]
[1772957584280,10.05161605,82.834,82.787,39.96500478]
[1772957584481,10.05161605,82.833,82.787,39.96500478]
[1772957584780,10.05161605,82.832,82.787,39.96500478]
[1772957584981,10.05161605,82.831,82.787,39.96500478]
[1772957585182,10.865,82.837,82.787,39.96500478]
[1772957585382,10.0503329,82.836,82.787,39.96500478]
[1772957585678,10.0503329,82.835,82.787,39.96500478]
[1772957585879,10.0503329,82.834,82.787,39.96500478]
[1772957586180,10.0503329,82.833,82.787,39.96500478]
[1772957586478,10.865,82.837,82.787,39.96500478]
[1772957586479,10.0503329,82.832,82.787,39.96500478]
[1772957586680,10.0503329,82.831,82.787,39.96500478]
[1772957586879,10.0503329,82.83,82.787,39.96500478]
[1772957587182,10.0503329,82.829,82.787,39.96500478]
[1772957587381,10.0503329,82.828,82.787,39.96500478]
[1772957587571,10.0503329,82.827,82.787,39.96500478]
[1772957587776,10.865,82.837,82.787,39.96500478]
[1772957587975,10.05054315,82.836,82.787,39.96500478]
[1772957588176,10.05054315,82.835,82.787,39.96500478]
[1772957588377,10.05054315,82.834,82.787,39.96500478]
[1772957588675,10.05054315,82.833,82.787,39.96500478]
[1772957588871,10.05054315,82.832,82.787,39.96500478]